bitfinex/quotes_ETHUSD_20250630
["timestamp","ask_amount","ask_price","bid_price","bid_amount"]
[1751251740290,6.455,2507.2,2507.0,3.19104903]
[1751251740991,6.455,2507.2,2507.1,3.19093773]
[1751251741379,1.652,2507.3,2507.1,3.19093773]
[1751251741380,1.655,2507.3,2507.1,3.19093773]
[1751251741586,6.453,2507.2,2507.1,3.19093773]
[1751251741894,0.7748,2507.4,2507.0,3.19101836]
[1751251742197,8.107,2507.3,2507.0,3.19101836]
[1751251742896,6.451,2507.2,2507.1,3.19093642]
[1751251743897,6.451,2507.2,2507.0,3.19096208]
[1751251744395,6.451,2507.2,2507.1,3.19093773]
[1751251744795,6.45,2507.2,2507.1,3.19093773]
[1751251745001,0.7748,2507.4,2507.1,3.19093773]
[1751251745178,8.105,2507.3,2507.1,3.19093773]
[1751251745696,6.45,2507.2,2507.0,3.19099801]
[1751251745880,6.45,2507.2,2506.9,3.19116271]
[1751251746088,6.45,2507.2,2507.0,3.19101302]
[1751251746998,6.45,2507.2,2507.1,3.19093773]
[1751251747503,0.7748,2507.4,2507.1,3.19093773]
[1751251747504,0.002,2507.5,2507.1,0.63821004]
[1751251747681,8.103,2507.4,2507.3,3.1905713]
[1751251748572,1.657,2507.5,2507.4,3.19055595]
[1751251748799,8.107,2507.5,2507.4,3.19055595]
[1751251749477,8.107,2507.5,2507.3,3.19065977]
[1751251750069,1.657,2507.5,2507.3,3.19065977]
[1751251750380,6.45,2507.4,2507.3,3.19065977]
[1751251751175,0.002,2507.5,2507.3,3.19065977]
[1751251751406,6.448,2507.4,2507.3,3.90746563]
[1751251751997,6.448,2507.4,2507.3,0.71680586]
[1751251752403,6.448,2507.4,2507.3,3.90748906]
[1751251753021,0.002,2507.5,2507.4,3.19055595]
[1751251753306,6.451,2507.5,2507.4,3.19055595]
[1751251753502,6.451,2507.5,2507.4,4.66526023]
[1751251753807,0.002,2507.5,2507.4,4.66526023]
[1751251754099,6.451,2507.5,2507.4,4.66526023]
[1751251754492,0.002,2507.5,2507.4,4.66526023]
[1751251760126,0.002,2507.5,2507.4,3.90036023]
[1751251760277,0.002,2507.5,2507.4,3.19055595]
[1751251763510,0.002,2507.5,2507.4,3.99465595]
[1751251764416,0.002,2507.5,2507.4,3.19055595]
[1751251770199,0.002,2507.5,2507.4,3.97945595]
[1751251772424,0.002,2507.5,2507.4,13.97945595]
[1751251772604,0.002,2507.5,2507.4,16.37931131]
[1751251788771,0.002,2507.5,2507.4,15.59041131]
[1751251789727,0.002,2507.5,2507.4,20.35041131]
[1751251789931,0.002,2507.5,2507.4,21.17771131]
[1751251792969,0.002,2507.5,2507.4,21.87771131]
[1751251795639,0.002,2507.5,2507.4,28.53932201]
[1751251797163,0.002,2507.5,2507.4,34.98432201]
[1751251798033,0.002,2507.5,2507.4,64.98432201]
[1751251798331,0.002,2507.5,2507.4,58.83311301]
[1751251798866,0.002,2507.5,2507.4,55.95247101]
[1751251799066,0.002,2507.5,2507.4,56.85200501]
[1751251799468,0.002,2507.5,2507.4,56.61868501]
[1751251799937,0.002,2507.5,2507.4,49.72147501]
[1751251800267,0.002,2507.5,2507.4,40.87069001]
[1751251800456,0.002,2507.5,2507.4,40.17119001]
[1751251800837,0.002,2507.5,2507.4,27.61457931]
[1751251801045,0.002,2507.5,2507.4,22.42771131]
[1751251801786,0.002,2507.5,2507.4,43.48311831]
[1751251801981,0.002,2507.5,2507.4,52.42771131]
[1751251802210,0.002,2507.5,2507.4,48.51145731]
[1751251803041,0.002,2507.5,2507.4,50.15057531]
[1751251803980,0.002,2507.5,2507.4,22.42771131]
[1751251804194,0.002,2507.5,2507.4,52.42771131]
[1751251806599,0.002,2507.5,2507.4,47.45075831]
[1751251807252,0.002,2507.7,2507.6,23.06387548]
[1751251807579,0.002,2507.7,2507.6,43.52119972]
[1751251808170,0.002,2507.7,2507.6,54.43042572]
[1751251808541,7.06729691,2509.0,2508.5,3.18915686]
[1751251808542,0.95568621,2509.0,2508.5,3.18915686]
[1751251808749,1.651,2509.2,2508.8,3.18877551]
[1751251808750,0.7642,2508.9,2508.8,3.18877551]
[1751251810271,1.651,2509.2,2509.1,3.18839424]
[1751251810473,1.651,2509.2,2509.0,3.18845914]
[1751251810785,0.7571,2509.1,2508.9,3.18859311]
[1751251812380,0.7571,2509.1,2508.8,3.18870875]
[1751251812780,0.7571,2509.1,2508.6,3.18900169]
[1751251812781,0.7758,2508.9,2508.6,3.18895064]
[1751251812987,0.7758,2508.9,2508.7,3.18888908]
[1751251813658,0.7758,2508.9,2508.6,3.1889731]
[1751251814489,0.7758,2508.9,2508.7,3.18883229]
[1751251818114,0.7758,2508.9,2508.6,3.18896621]
[1751251818813,0.7758,2508.9,2508.7,3.18889024]
[1751251820610,0.7758,2508.9,2508.8,3.18877551]
[1751251822204,0.7758,2508.9,2508.7,3.18886123]
[1751251822409,6.8874107,2508.9,2508.7,3.18886123]
[1751251823215,0.7758,2508.9,2508.8,3.18877551]
[1751251825888,0.7758,2508.9,2508.7,3.18884333]
[1751251826088,0.7758,2508.9,2508.6,3.18896672]
[1751251826811,0.7758,2508.9,2508.7,3.18890015]
[1751251827401,0.7758,2508.9,2508.5,3.18911926]
[1751251827590,0.7758,2508.9,2508.6,3.18892536]
[1751251828481,0.7758,2508.9,2508.1,0.7989]
[1751251828686,0.8115,2508.6,2508.4,3.18922635]
[1751251829008,0.8115,2508.6,2508.5,3.18915686]
[1751251830488,0.8115,2508.6,2508.4,3.18922451]
[1751251831727,0.8115,2508.6,2508.3,3.18934381]
[1751251831728,0.1992,2508.4,2508.3,3.18934381]
[1751251837798,0.1992,2508.4,2508.3,3.88934381]
[1751251840033,0.1992,2508.4,2508.3,3.18934381]
[1751251844446,0.8002,2508.3,2508.1,3.18953841]
[1751251844738,0.8002,2508.3,2508.2,3.18951855]
[1751251847935,0.8002,2508.3,2508.2,3.88951855]
[1751251849354,0.8002,2508.3,2508.2,0.7]
[1751251850213,7.2422,2508.3,2508.2,0.7]
[1751251851406,13.3538107,2508.3,2508.2,0.7]
[1751251851724,15.00811725,2508.3,2508.2,0.7]
[1751251851925,13.3538107,2508.3,2508.2,0.7]
[1751251852322,0.1992,2508.2,2508.0,3.18973854]
[1751251852558,13.3538107,2508.3,2508.0,3.18973854]
[1751251852858,13.3538107,2508.3,2508.1,3.18964212]
[1751251853516,6.9358107,2508.5,2508.2,3.18953831]
[1751251853752,6.442,2508.4,2508.2,3.18953831]
[1751251856052,6.442,2508.4,2508.0,3.1897387]
[1751251856053,0.1992,2508.2,2508.1,3.18959258]
[1751251856245,6.442,2508.4,2508.1,3.18959258]
[1751251856750,6.442,2508.4,2507.7,3.94755616]
[1751251856977,0.1992,2508.1,2507.8,11.39475562]
[1751251857177,6.9358107,2508.5,2508.2,3.1895149]
[1751251857338,6.442,2508.4,2508.2,3.1895149]
[1751251859974,0.1992,2508.2,2507.9,3.18983935]
[1751251860139,6.442,2508.1,2508.0,3.18979266]
[1751251862993,0.1992,2508.0,2507.9,3.18989545]
[1751251863192,6.442,2508.1,2507.9,3.18989545]
[1751251864676,6.442,2508.1,2507.6,13.19029821]
[1751251864677,0.1992,2507.9,2507.6,13.19029821]
[1751251864864,6.1116107,2508.0,2507.7,3.19005876]
[1751251865486,6.1116107,2508.0,2507.8,3.19002169]
[1751251865892,6.1116107,2508.0,2507.4,2.4716]
[1751251865893,0.7619,2507.8,2506.9,0.8206]
[1751251866067,1.33155107,2507.9,2506.9,0.8206]
[1751251866068,6.8735107,2507.4,2506.9,0.8206]
[1751251866382,6.442,2507.3,2507.0,3.1910204]
[1751251867196,6.442,2507.3,2507.1,3.19092783]
[1751251868206,6.1116107,2507.4,2507.2,3.19073698]
[1751251868404,6.442,2507.3,2507.2,3.19073698]
[1751251869520,6.442,2507.3,2507.1,3.19087886]
[1751251870381,6.442,2507.3,2506.9,0.8206]
[1751251870716,7.2534,2507.3,2506.9,3.19111939]
[1751251871613,7.2534,2507.3,2507.0,3.1910587]
[1751251871976,7.2534,2507.3,2506.9,3.19112394]
[1751251872275,7.2534,2507.3,2507.0,3.19105725]
[1751251873004,7.2534,2507.3,2506.9,3.19112295]
[1751251875401,10.44408834,2507.3,2506.9,3.19112295]
[1751251875603,10.44408834,2507.3,2506.8,3.19124851]
[1751251876285,7.2534,2507.3,2506.9,3.19118797]
[1751251876710,0.1992,2506.9,2506.8,3.19131607]
[1751251876892,6.6422,2506.9,2506.8,14.90559007]
[1751251877409,6.6422,2506.9,2506.8,4.90559007]
[1751251886098,0.1992,2506.9,2506.8,4.90559007]
[1751251886418,6.8630107,2507.8,2507.4,3.1904894]
[1751251886619,7.44830008,2507.7,2507.4,3.1904894]
[1751251887009,0.1992,2507.4,2506.9,0.7848]
[1751251887217,0.1992,2506.9,2506.7,0.8331]
[1751251887724,6.9155107,2507.2,2506.8,13.19124842]
[1751251890416,6.443,2507.3,2507.0,3.19100172]
[1751251890808,6.443,2507.3,2507.1,3.19091165]
[1751251891015,6.443,2507.2,2507.1,3.19091165]
[1751251891832,6.1116107,2507.5,2507.2,3.19077267]
[1751251892035,0.7856,2507.6,2507.3,3.19057521]
[1751251892222,6.443,2507.4,2507.3,3.19057521]
[1751251892623,0.7856,2507.6,2507.1,3.94340245]
[1751251892624,0.1992,2507.3,2507.2,3.19074231]
[1751251892823,6.443,2507.4,2507.3,3.1906832]
[1751251893138,0.7856,2507.6,2507.1,3.94338325]
[1751251893139,0.7856,2507.6,2507.4,3.19054745]
[1751251893341,0.7856,2507.6,2507.2,3.19078747]
[1751251893342,6.443,2507.5,2507.3,3.19062569]
[1751251893721,0.1992,2507.3,2507.1,0.7525]
[1751251893917,12.5546107,2507.5,2507.1,3.19084498]
[1751251894324,17.39811785,2507.5,2507.0,3.19100998]
[1751251894552,0.1992,2507.1,2507.0,3.19100998]
[1751251894718,0.1992,2507.1,2506.8,4.76]
[1751251894719,12.7538107,2507.1,2506.8,4.76]
[1751251895047,12.5546107,2507.1,2506.8,4.76]
[1751251895231,15.74565278,2507.1,2506.8,4.76]
[1751251895631,6.1116107,2506.9,2506.8,4.76]
[1751251896043,0.9874,2506.8,2506.4,3.19173562]
[1751251896226,0.1992,2506.6,2506.5,3.19170157]
[1751251896421,12.5546107,2506.7,2506.4,3.19176849]
[1751251897216,12.5546107,2506.7,2506.5,3.19169131]
[1751251897744,12.5546107,2506.7,2506.6,3.19157424]
[1751251897938,6.443,2506.7,2506.6,3.19157424]
[1751251898530,0.1992,2506.6,2506.5,3.1916321]
[1751251898751,6.443,2506.7,2506.6,3.19157424]
[1751251899051,6.443,2506.7,2506.5,3.19161878]
[1751251900671,0.1992,2506.5,2506.3,3.94710663]
[1751251900961,6.6422,2506.5,2506.4,3.1918032]
[1751251901164,6.443,2506.5,2506.4,3.1918032]
[1751251901360,0.1992,2506.4,2506.3,13.19183208]
[1751251908050,0.1992,2506.4,2506.1,3.192211]
[1751251908246,6.1116107,2506.3,2505.7,0.7736]
[1751251908458,0.1992,2505.9,2505.8,3.19259318]
[1751251908659,6.444,2506.1,2506.0,3.19233838]
[1751251911253,6.444,2506.1,2505.9,3.19246513]
[1751251911478,0.1992,2506.0,2505.9,3.19246513]
[1751251912837,0.1992,2506.0,2505.8,3.19254483]
[1751251913088,12.5556107,2506.1,2505.8,3.19254483]
[1751251913265,0.7539,2506.0,2505.8,3.19254483]
[1751251913634,0.7539,2506.4,2505.8,0.63853682]
[1751251913873,6.444,2506.3,2506.2,3.19199764]
[1751251914252,0.1992,2506.2,2506.1,3.19214153]
[1751251914452,6.444,2506.3,2506.1,3.19214153]
[1751251914453,12.5556107,2506.3,2506.1,3.19214153]
[1751251915664,12.5556107,2506.3,2506.2,3.19208363]
[1751251915978,6.1116107,2506.3,2506.2,3.19208363]
[1751251916181,12.5566107,2506.3,2506.2,3.19208363]
[1751251916750,12.5566107,2506.3,2506.1,3.19214212]
[1751251918447,6.1116107,2506.3,2506.1,3.19214212]
[1751251918644,6.445,2506.2,2506.1,3.19214212]
[1751251920784,0.7539,2506.4,2506.2,3.19208363]
[1751251921079,6.445,2506.3,2506.2,3.19208363]
[1751251923572,0.7539,2506.4,2506.2,3.19208363]
[1751251923764,0.1992,2506.2,2505.7,0.8234]
[1751251923943,0.1992,2506.2,2506.0,3.192236]
[1751251924264,12.5566107,2506.3,2506.0,3.192236]
[1751251924648,6.1116107,2506.3,2506.1,3.19219254]
[1751251924855,6.445,2506.2,2506.1,3.19219254]
[1751251925579,6.1116107,2506.3,2506.2,3.19208363]
[1751251925885,12.5566107,2506.3,2506.2,3.19208363]
[1751251926371,11.16364134,2507.3,2506.1,3.97739254]
[1751251926570,11.16364134,2507.3,2505.9,3.19243491]
[1751251926571,16.1116107,2507.1,2506.7,3.19139191]
[1751251928680,16.1116107,2507.1,2506.8,3.19130757]
[1751251928876,2.65512798,2507.0,2506.8,3.19130757]
[1751251929057,6.445,2506.9,2506.8,3.19130757]
[1751251929668,0.1992,2506.8,2506.7,3.19137553]
[1751251929867,6.444,2506.9,2506.7,3.19137553]
[1751251931556,6.444,2506.9,2506.8,3.19131961]
[1751251931760,6.444,2506.9,2506.7,3.19139103]
[1751251932382,0.1992,2506.7,2506.6,3.19157424]
[1751251932552,6.6432,2506.7,2506.6,3.19157424]
[1751251932751,6.6432,2506.7,2506.3,0.7852]
[1751251932952,6.6432,2506.7,2506.2,10.0]
[1751251932953,0.1992,2506.4,2506.2,3.19201521]
[1751251933179,6.1116107,2506.5,2506.1,7.95218886]
[1751251933180,6.444,2506.3,2506.1,3.19214069]
[1751251933542,6.444,2506.3,2506.0,3.19230954]
[1751251933543,0.1992,2506.2,2506.0,3.1922898]
[1751251933661,0.1992,2506.0,2505.9,3.19237114]
[1751251933981,6.6432,2506.0,2505.9,3.19237114]
[1751251934771,6.6432,2506.0,2505.8,4.59414255]
[1751251935000,6.6432,2506.0,2505.4,10.001]
[1751251935001,0.1992,2505.8,2505.4,0.001]
[1751251935282,6.1116107,2505.6,2505.4,0.001]
[1751251935790,6.1116107,2505.6,2505.4,3.19408016]
[1751251936450,6.1116107,2505.6,2505.4,0.001]
[1751251936671,6.1116107,2505.6,2505.4,3.19403177]
[1751251936876,6.1116107,2505.6,2505.4,0.001]
[1751251937675,6.1116107,2505.6,2505.1,0.001]
[1751251937676,0.55,2505.5,2505.1,0.001]
[1751251937898,3.95418529,2505.1,2505.0,0.001]
[1751251938196,12.05718529,2505.1,2505.0,0.001]
[1751251938386,3.95418529,2505.1,2505.0,0.001]
[1751251938573,13.40510112,2505.1,2505.0,0.001]
[1751251939965,16.32322653,2505.1,2505.0,0.001]
[1751251940386,19.51671182,2505.1,2505.0,0.001]
[1751251940696,16.32322653,2505.1,2505.0,0.001]
[1751251943391,8.19822653,2505.1,2505.0,3.19461277]
[1751251943596,8.126,2505.1,2505.0,3.19461277]
[1751251943758,6.474,2505.1,2505.0,3.19461277]
[1751251945007,6.474,2505.1,2505.0,0.001]
[1751251945192,6.474,2505.1,2505.0,3.19461277]
[1751251945495,6.1116107,2505.3,2505.0,3.19461277]
[1751251945686,1.651,2505.1,2505.0,3.19461277]
[1751251946292,1.651,2505.2,2505.1,3.19348529]
[1751251946492,8.124,2505.2,2505.1,3.19348529]
[1751251946694,6.1116107,2505.3,2505.0,3.19451485]
[1751251946898,8.126,2505.2,2505.1,3.19348529]
[1751251949884,0.1992,2505.1,2505.0,0.001]
[1751251950065,6.6722,2505.1,2505.0,3.19459923]
[1751251950259,6.6722,2505.1,2505.0,3.83353103]
[1751251952006,6.6722,2505.1,2505.0,3.19459923]
[1751251954285,0.1992,2505.1,2505.0,3.19459923]
[1751251954479,6.6732,2505.1,2505.0,3.19459923]
[1751251954680,6.6732,2505.1,2505.0,3.97309923]
[1751251956521,0.1992,2505.1,2505.0,3.97309923]
[1751251956722,0.1992,2505.1,2505.0,14.68988094]
[1751251960412,6.471,2505.5,2505.0,4.68988094]
[1751251960613,0.1992,2505.3,2505.2,3.19335781]
[1751251963297,0.1992,2505.3,2505.2,3.89335781]
[1751251972994,0.2002,2505.3,2505.2,3.89335781]
[1751251982546,0.2002,2505.3,2505.2,0.7]
[1751251982779,8.7536107,2505.3,2505.0,0.001]
[1751251982929,6.8884107,2505.1,2505.0,0.001]
[1751251983241,16.74209599,2505.1,2505.0,0.001]
[1751251983669,13.5486107,2505.1,2505.0,0.001]
[1751251987949,16.74209599,2505.1,2505.0,0.001]
[1751251988320,13.5486107,2505.1,2505.0,0.001]
[1751251988648,15.82820754,2505.1,2505.0,0.001]
[1751251989254,19.02169283,2505.1,2505.0,0.001]
[1751251993665,15.82820754,2505.1,2505.0,0.001]
[1751251994036,25.82820754,2505.1,2505.0,0.001]
[1751251994561,29.02169283,2505.1,2505.0,0.001]
[1751251995078,22.91008213,2505.1,2505.0,0.001]
[1751252003050,16.44908213,2505.1,2505.0,0.001]
[1751252003341,24.56108213,2505.1,2505.0,0.001]
[1751252009391,24.56208213,2505.1,2505.0,0.001]
[1751252011467,25.51287544,2505.1,2505.0,0.001]
[1751252017098,17.40087544,2505.1,2505.0,0.001]
[1751252017268,25.50687544,2505.1,2505.0,0.001]
[1751252019902,17.40087544,2505.1,2505.0,0.001]
[1751252020108,25.50687544,2505.1,2505.0,0.001]
[1751252020415,16.62407544,2505.1,2505.0,0.001]
[1751252020573,24.73007544,2505.1,2505.0,0.001]
[1751252023802,16.62407544,2505.1,2505.0,0.001]
[1751252024101,24.73007544,2505.1,2505.0,0.001]
[1751252026302,25.53177544,2505.1,2505.0,0.001]
[1751252027880,26.08177544,2505.1,2505.0,0.001]
[1751252030122,26.08077544,2505.1,2505.0,0.001]
[1751252030283,3.19437789,2504.4,2504.3,0.001]
[1751252030483,26.51588859,2504.4,2504.3,0.001]
[1751252030696,13.19476059,2504.1,2504.0,0.001]
[1751252030906,26.52127129,2504.1,2504.0,0.001]
[1751252031222,15.60566059,2504.1,2504.0,0.001]
[1751252031427,23.26833709,2504.1,2504.0,0.001]
[1751252031584,24.22053701,2504.1,2504.0,0.001]
[1751252034333,23.26833709,2504.1,2504.0,0.001]
[1751252036719,15.14733709,2504.1,2504.0,0.001]
[1751252036912,22.51343709,2504.1,2504.0,0.001]
[1751252038093,22.51343709,2504.1,2503.2,0.008327]
[1751252038094,13.39408817,2504.0,2503.2,0.008327]
[1751252038318,22.54319571,2504.0,2503.2,0.008327]
[1751252038523,22.54319571,2504.0,2503.2,3.20413355]
[1751252038824,30.67119571,2504.0,2503.2,3.20413355]
[1751252039125,30.67119571,2504.0,2503.3,3.19569251]
[1751252039328,30.67119571,2504.0,2503.5,0.7776]
[1751252039826,22.54319571,2504.0,2503.5,0.7776]
[1751252040043,30.67119571,2504.0,2503.5,0.7776]
[1751252041530,29.91329571,2504.0,2503.5,0.7776]
[1751252041695,29.91229571,2504.0,2503.5,0.7776]
[1751252041894,21.78529571,2504.0,2503.5,0.7776]
[1751252042131,29.91229571,2504.0,2503.5,3.97309753]
[1751252043626,1.8532,2504.0,2503.5,0.7776]
[1751252043821,11.52208817,2504.0,2503.5,3.97309138]
[1751252044728,11.52208817,2504.0,2503.5,3.97307335]
[1751252045325,11.52208817,2504.0,2503.5,0.7776]
[1751252046604,11.52208817,2504.0,2503.2,3.20421986]
[1751252046605,3.19576664,2503.4,2503.2,0.008327]
[1751252046927,12.5836107,2503.3,2503.2,0.008327]
[1751252047610,15.77939226,2503.3,2503.2,0.008327]
[1751252048227,12.5836107,2503.3,2503.2,0.008327]
[1751252048419,6.472,2503.3,2503.2,0.008327]
[1751252048716,9.66778156,2503.3,2503.2,0.008327]
[1751252049639,6.472,2503.3,2503.2,0.008327]
[1751252051235,3.19546709,2503.6,2503.2,0.008327]
[1751252051434,3.19541667,2503.6,2503.3,0.8132]
[1751252051618,6.477,2503.5,2503.3,0.8132]
[1751252053429,9.67254379,2503.5,2503.3,0.8132]
[1751252053945,3.19565391,2503.4,2503.3,0.8132]
[1751252054241,0.1992,2503.3,2503.2,0.008327]
[1751252054455,6.6782,2503.3,2503.2,0.008327]
[1751252056508,0.1992,2503.3,2503.2,0.758427]
[1751252056708,6.6762,2503.3,2503.2,3.95433623]
[1751252056914,6.6762,2503.3,2503.2,0.758427]
[1751252057731,6.6762,2503.3,2503.2,3.95433623]
[1751252059447,6.6762,2503.3,2503.2,0.758427]
[1751252060196,6.6742,2503.3,2503.2,0.758427]
[1751252061952,6.6742,2503.3,2503.2,3.95433623]
[1751252061953,0.1992,2503.3,2503.2,3.95433623]
[1751252062148,6.6732,2503.3,2503.2,4.66936729]
[1751252062463,6.6732,2503.3,2503.2,3.95433623]
[1751252063816,0.1992,2503.3,2503.2,3.95433623]
[1751252064018,6.6732,2503.3,2503.2,3.95433623]
[1751252067561,6.6722,2503.3,2503.2,3.95433623]
[1751252068059,0.1992,2503.3,2503.2,3.95433623]
[1751252069662,0.1992,2503.3,2503.2,4.66956729]
[1751252071536,0.1992,2503.3,2503.2,14.66956729]
[1751252073067,0.1992,2503.3,2503.2,15.36956729]
[1751252073274,0.1992,2503.3,2503.2,15.91956729]
[1751252073572,0.001,2503.9,2503.2,15.91956729]
[1751252073573,6.468,2503.8,2503.7,3.9879523]
[1751252076187,0.001,2503.9,2503.8,3.19514338]
[1751252076392,6.468,2503.9,2503.8,3.19514338]
[1751252076599,0.001,2503.9,2503.8,3.19514338]
[1751252076745,0.001,2503.9,2503.8,4.65248295]
[1751252076946,0.001,2503.9,2503.8,14.65248295]
[1751252077967,0.001,2503.9,2503.8,15.35248295]
[1751252080959,0.001,2503.9,2503.8,10.7]
[1751252081487,0.001,2503.9,2503.8,10.0]
[1751252081488,6.47,2503.9,2503.8,10.0]
[1751252082177,6.47,2503.9,2503.7,3.19520703]
[1751252082865,6.47,2503.9,2503.8,3.19514338]
[1751252087407,6.469,2503.9,2503.8,3.97064338]
[1751252089082,6.469,2503.9,2503.8,3.19514338]
[1751252091228,6.469,2503.9,2503.8,3.19714338]
[1751252094850,7.116,2503.9,2503.8,0.002]
[1751252095131,7.9309,2503.9,2503.8,0.002]
[1751252099020,11.12591577,2503.9,2503.8,0.002]
[1751252102924,4.65791577,2503.9,2503.8,0.002]
[1751252103125,12.77891577,2503.9,2503.8,0.002]
[1751252117724,23.32891577,2503.9,2503.8,0.002]
[1751252119575,24.27872119,2503.9,2503.8,0.002]
[1751252124959,24.27938373,2503.9,2503.8,0.002]
[1751252128360,25.46746868,2503.9,2503.8,0.002]
[1751252134572,24.27938373,2503.9,2503.8,0.002]
[1751252138387,24.27938373,2503.9,2503.2,0.008327]
[1751252138388,3.19578156,2503.3,2503.2,0.008327]
[1751252138607,17.42339226,2503.3,2503.2,0.008327]
[1751252139513,9.30739226,2503.3,2503.2,0.008327]
[1751252139687,11.31178156,2503.3,2503.2,0.008327]
[1751252139893,11.31178156,2503.3,2503.2,0.763127]
[1751252141195,17.42339226,2503.3,2503.2,0.763127]
[1751252141612,17.42339226,2503.3,2503.2,0.008327]
[1751252142211,18.78308178,2503.3,2503.2,0.008327]
[1751252148309,19.7356515,2503.3,2503.2,0.008327]
[1751252148520,19.73563126,2503.3,2503.2,0.008327]
[1751252151205,18.78308178,2503.3,2503.2,0.008327]
[1751252151415,19.73565844,2503.3,2503.2,0.008327]
[1751252154106,13.74590923,2503.2,2503.1,0.002]
[1751252154335,16.14698589,2503.2,2503.1,0.002]
[1751252154835,13.1961646,2503.0,2502.9,0.002]
[1751252155032,25.7677753,2503.0,2502.9,0.002]
[1751252157932,26.71950064,2503.0,2502.9,0.002]
[1751252163067,4.52822,2502.8,2502.7,0.002]
[1751252163266,14.52847545,2502.6,2502.5,0.2142513]
[1751252163568,28.75708615,2502.6,2502.5,0.2142513]
[1751252163768,29.7074667,2502.6,2502.5,0.2142513]
[1751252163937,29.7336609,2502.6,2502.5,0.2142513]
[1751252164342,20.66628035,2502.6,2502.5,0.2142513]
[1751252164525,29.73299354,2502.6,2502.5,0.2142513]
[1751252164861,28.95119354,2502.6,2502.5,0.2142513]
[1751252165472,30.30319354,2502.6,2502.5,0.2142513]
[1751252165663,30.30419354,2502.6,2502.5,0.2142513]
[1751252172858,30.30419354,2502.6,2502.5,0.2162513]
[1751252175788,22.18619354,2502.6,2502.5,0.2162513]
[1751252175990,30.30419354,2502.6,2502.5,0.2162513]
[1751252177207,3.19667545,2502.6,2502.5,0.2162513]
[1751252177528,0.001,2503.0,2502.5,0.9870513]
[1751252177812,0.001,2503.0,2502.6,0.7708]
[1751252177813,6.1116107,2502.7,2502.6,0.7708]
[1751252178024,12.5836107,2502.7,2502.6,0.7708]
[1751252178817,12.5836107,2502.7,2502.5,0.2162513]
[1751252178818,3.39587545,2502.6,2502.5,0.2162513]
[1751252179811,21.52787545,2502.6,2502.5,0.2162513]
[1751252180580,22.07787545,2502.6,2502.5,0.2162513]
[1751252180785,23.02512729,2502.6,2502.5,0.2162513]
[1751252186124,21.52587545,2502.6,2502.5,0.2162513]
[1751252186424,24.8463001,2502.6,2502.5,0.2162513]
[1751252187607,25.79578677,2502.6,2502.5,0.2162513]
[1751252187810,24.8463001,2502.6,2502.5,0.2162513]
[1751252188011,25.3963001,2502.6,2502.5,0.2162513]
[1751252188221,26.34605089,2502.6,2502.5,0.2162513]
[1751252189082,25.3963001,2502.6,2502.5,0.2162513]
[1751252190782,26.34648594,2502.6,2502.5,0.2162513]
[1751252191758,27.11728594,2502.6,2502.5,0.2162513]
[1751252193009,28.30726022,2502.6,2502.5,0.2162513]
[1751252193301,58.30726022,2502.6,2502.5,0.2162513]
[1751252193691,3.74718647,2502.2,2502.1,0.002]
[1751252193885,29.23837626,2502.2,2502.1,0.002]
[1751252194422,28.04968301,2502.2,2502.1,0.002]
[1751252196227,28.40410669,2502.2,2502.1,0.002]
[1751252196405,29.59279994,2502.2,2502.1,0.002]
[1751252196602,31.17081259,2502.2,2502.1,0.002]
[1751252196807,29.98211934,2502.2,2502.1,0.002]
[1751252197006,31.17081259,2502.2,2502.1,0.002]
[1751252197954,3.74731425,2502.1,2502.0,0.2864846]
[1751252198183,9.2060641,2502.1,2502.0,0.2864846]
[1751252198479,8.01792474,2502.1,2502.0,0.2864846]
[1751252198981,48.82732474,2502.1,2502.0,0.2864846]
[1751252199150,3.19808115,2501.5,2501.4,0.005]
[1751252199670,11.34008115,2501.5,2501.4,0.005]
[1751252204772,3.19808115,2501.5,2501.4,0.005]
[1751252205174,11.33708115,2501.5,2501.4,0.005]
[1751252206170,12.01308368,2501.5,2501.4,0.005]
[1751252208482,18.12469438,2501.5,2501.4,0.006]
[1751252210077,17.44869185,2501.5,2501.4,0.006]
[1751252210586,17.44569185,2501.5,2501.4,0.006]
[1751252211670,9.30969185,2501.5,2501.4,0.006]
[1751252211871,17.44469185,2501.5,2501.4,0.006]
[1751252212988,28.78429185,2501.5,2501.4,0.006]
[1751252213190,31.03830703,2501.5,2501.4,0.006]
[1751252213606,22.90330703,2501.5,2501.4,0.006]
[1751252213775,31.03930703,2501.5,2501.4,0.006]
[1751252214699,31.04130703,2501.5,2501.4,0.006]
[1751252214903,21.33608115,2501.5,2501.4,0.006]
[1751252216600,13.74808115,2501.5,2501.4,0.006]
[1751252216817,21.88708115,2501.5,2501.4,0.006]
[1751252217696,13.74808115,2501.5,2501.4,0.006]
[1751252218114,21.88808115,2501.5,2501.4,0.006]
[1751252218607,25.08680603,2501.5,2501.4,0.006]
[1751252218813,16.39680603,2501.5,2501.4,0.006]
[1751252219188,24.53580603,2501.5,2501.4,0.006]
[1751252219785,24.53780603,2501.5,2501.4,0.006]
[1751252220111,21.33908115,2501.5,2501.4,0.006]
[1751252220727,27.45069185,2501.5,2501.4,0.006]
[1751252222197,28.39975733,2501.5,2501.4,0.006]
[1751252226034,29.71805733,2501.5,2501.4,0.006]
[1751252226220,29.71805733,2501.5,2500.7,0.01]
[1751252226221,3.19897632,2500.8,2500.7,0.01]
[1751252226424,11.33997632,2500.8,2500.7,0.01]
[1751252226742,8.149,2500.8,2500.7,0.01]
[1751252227231,6.1116107,2501.1,2500.7,0.01]
[1751252227432,10.0,2501.1,2500.8,0.7837]
[1751252227633,8.148,2501.0,2500.8,0.7837]
[1751252228346,3.19884841,2500.9,2500.8,0.7837]
[1751252228520,8.148,2501.0,2500.8,0.7837]
[1751252228521,11.34678966,2501.0,2500.8,0.7837]
[1751252228708,3.19884841,2500.9,2500.8,0.7837]
[1751252230804,11.34678314,2501.0,2500.8,0.7837]